[Event "Titled Tuesday Blitz May 24 Early 2022"]
[White "Perera Alfonso, Rene Humberto"]
[Black "Ibrahimli, Murad"]
[WhiteFideId "3514722"]
[BlackFideId "13410229"]
[WhiteElo "2313"]
[BlackElo "2109"]
[Result "0-1"]
[Round "02"]
[TimeControl "180+1"]
[Date "2022.05.25"]
[WhiteClock "0:00:39"]
[BlackClock "0:00:23"]

1. e4 {[%clk 0:03:00]}  e5 {[%clk 0:02:59]} 2. Nf3 {[%clk 0:02:56]}  Nc6 {[%clk 0:02:59]} 3. Bb5 {[%clk 0:02:56]}  a6 {[%clk 0:02:59]} 4. Ba4 {[%clk 0:02:56]}  Nf6 {[%clk 0:03:00]} 5. O-O {[%clk 0:02:56]}  Be7 {[%clk 0:02:59]} 6. Re1 {[%clk 0:02:56]}  b5 {[%clk 0:03:00]} 7. Bb3 {[%clk 0:02:55]}  O-O {[%clk 0:03:00]} 8. a4 {[%clk 0:02:56]}  Rb8 {[%clk 0:02:57]} 9. axb5 {[%clk 0:02:55]}  axb5 {[%clk 0:02:57]} 10. Nc3 {[%clk 0:02:55]}  d6 {[%clk 0:02:57]} 11. h3 {[%clk 0:02:51]}  h6 {[%clk 0:02:44]} 12. d3 {[%clk 0:02:50]}  Bd7 {[%clk 0:02:39]} 13. Nd5 {[%clk 0:02:50]}  Re8 {[%clk 0:02:28]} 14. c4 {[%clk 0:02:48]}  bxc4 {[%clk 0:02:23]} 15. Bxc4 {[%clk 0:02:45]}  Nxd5 {[%clk 0:02:19]} 16. exd5 {[%clk 0:02:38]}  Nb4 {[%clk 0:02:19]} 17. Bd2 {[%clk 0:02:38]}  Bf8 {[%clk 0:02:11]} 18. Bc3 {[%clk 0:02:33]}  c5 {[%clk 0:02:02]} 19. Qd2 {[%clk 0:02:22]}  Qc7 {[%clk 0:01:56]} 20. Ra3 {[%clk 0:02:20]}  Bb5 {[%clk 0:01:31]} 21. Rea1 {[%clk 0:02:17]}  Bxc4 {[%clk 0:01:29]} 22. dxc4 {[%clk 0:02:18]}  e4 {[%clk 0:01:29]} 23. Nh2 {[%clk 0:02:14]}  Nd3 {[%clk 0:01:20]} 24. Ng4 {[%clk 0:02:06]}  Qe7 {[%clk 0:01:17]} 25. Ra7 {[%clk 0:01:40]}  Qg5 {[%clk 0:01:13]} 26. Qxg5 {[%clk 0:01:40]}  hxg5 {[%clk 0:01:14]} 27. Rd7 {[%clk 0:01:39]}  Red8 {[%clk 0:01:11]} 28. Rc7 {[%clk 0:01:38]}  Rdc8 {[%clk 0:01:03]} 29. Rd7 {[%clk 0:01:38]}  Rd8 {[%clk 0:01:04]} 30. Rc7 {[%clk 0:01:37]}  Nf4 {[%clk 0:00:51]} 31. Kf1 {[%clk 0:01:28]}  Ra8 {[%clk 0:00:46]} 32. Raa7 {[%clk 0:01:23]}  Rxa7 {[%clk 0:00:45]} 33. Rxa7 {[%clk 0:01:24]}  Rb8 {[%clk 0:00:46]} 34. Ne3 {[%clk 0:01:24]}  Nd3 {[%clk 0:00:43]} 35. Nd1 {[%clk 0:01:16]}  f5 {[%clk 0:00:41]} 36. Ke2 {[%clk 0:01:16]}  Nf4+ {[%clk 0:00:37]} 37. Kf1 {[%clk 0:01:15]}  Nd3 {[%clk 0:00:38]} 38. g3 {[%clk 0:01:13]}  Re8 {[%clk 0:00:31]} 39. Ke2 {[%clk 0:01:09]}  Be7 {[%clk 0:00:30]} 40. Ne3 {[%clk 0:01:08]}  g6 {[%clk 0:00:30]} 41. Rd7 {[%clk 0:01:03]}  Bf8 {[%clk 0:00:29]} 42. Nd1 {[%clk 0:00:54]}  f4 {[%clk 0:00:27]} 43. g4 {[%clk 0:00:50]}  Be7 {[%clk 0:00:21]} 44. Kd2 {[%clk 0:00:43]}  Bf8 {[%clk 0:00:21]} 45. f3 {[%clk 0:00:43]}  Ne5 {[%clk 0:00:21]} 46. Rb7 {[%clk 0:00:39]}  Nxf3+ {[%clk 0:00:20]} 47. Ke2 {[%clk 0:00:38]}  Nd4+ {[%clk 0:00:21]} 48. Kf1 {[%clk 0:00:39]}  e3 {[%clk 0:00:21]} 49. Bxd4 {[%clk 0:00:38]}  e2+ {[%clk 0:00:21]} 50. Ke1 {[%clk 0:00:38]}  exd1=Q+ {[%clk 0:00:22]} 51. Kxd1 {[%clk 0:00:39]}  cxd4 {[%clk 0:00:22]} 52. b4 {[%clk 0:00:40]}  f3 {[%clk 0:00:22]} 53. Ra7 {[%clk 0:00:39]}  f2 {[%clk 0:00:23]} 0-1


[Site "https://www.chess.com"]

[Event "Titled Tuesday Blitz May 24 Early 2022"]
[White "Perez Rodriguez, Jennifer"]
[Black "Butti, Enrique"]
[WhiteFideId "3507831"]
[BlackFideId "3700470"]
[WhiteElo "2170"]
[BlackElo "2080"]
[Result "1/2-1/2"]
[Round "02"]
[TimeControl "180+1"]
[Date "2022.05.25"]
[WhiteClock "0:00:17"]
[BlackClock "0:00:22"]

1. e4 {[%clk 0:03:00]}  c5 {[%clk 0:02:58]} 2. c3 {[%clk 0:03:00]}  e6 {[%clk 0:02:55]} 3. d4 {[%clk 0:02:59]}  d5 {[%clk 0:02:54]} 4. exd5 {[%clk 0:02:58]}  exd5 {[%clk 0:02:53]} 5. Nf3 {[%clk 0:02:58]}  Nc6 {[%clk 0:02:53]} 6. Be3 {[%clk 0:02:58]}  c4 {[%clk 0:02:50]} 7. b3 {[%clk 0:02:58]}  cxb3 {[%clk 0:02:49]} 8. axb3 {[%clk 0:02:58]}  Bd6 {[%clk 0:02:47]} 9. Bd3 {[%clk 0:02:55]}  Nge7 {[%clk 0:02:46]} 10. h3 {[%clk 0:02:55]}  Bf5 {[%clk 0:02:45]} 11. O-O {[%clk 0:02:55]}  O-O {[%clk 0:02:43]} 12. b4 {[%clk 0:02:48]}  a6 {[%clk 0:02:41]} 13. Qc2 {[%clk 0:02:37]}  Qd7 {[%clk 0:02:38]} 14. Bxf5 {[%clk 0:02:35]}  Nxf5 {[%clk 0:02:36]} 15. Nbd2 {[%clk 0:02:35]}  Rfe8 {[%clk 0:02:34]} 16. Rfe1 {[%clk 0:02:32]}  Bc7 {[%clk 0:02:18]} 17. Nf1 {[%clk 0:02:25]}  f6 {[%clk 0:02:14]} 18. Qd3 {[%clk 0:02:23]}  g6 {[%clk 0:02:12]} 19. b5 {[%clk 0:02:15]}  axb5 {[%clk 0:02:10]} 20. Qxb5 {[%clk 0:02:16]}  Rxa1 {[%clk 0:02:08]} 21. Rxa1 {[%clk 0:02:15]}  g5 {[%clk 0:01:58]} 22. Rb1 {[%clk 0:02:07]}  h5 {[%clk 0:01:57]} 23. c4 {[%clk 0:01:43]}  dxc4 {[%clk 0:01:51]} 24. Qxc4+ {[%clk 0:01:42]}  Kh8 {[%clk 0:01:47]} 25. d5 {[%clk 0:01:32]}  Ne5 {[%clk 0:01:44]} 26. Nxe5 {[%clk 0:01:31]}  Rxe5 {[%clk 0:01:40]} 27. Rxb7 {[%clk 0:01:21]}  Re7 {[%clk 0:00:56]} 28. Rb3 {[%clk 0:00:57]}  Qd6 {[%clk 0:00:50]} 29. Qc6 {[%clk 0:00:44]}  Qe5 {[%clk 0:00:44]} 30. Qc3 {[%clk 0:00:42]}  Qxc3 {[%clk 0:00:38]} 31. Rxc3 {[%clk 0:00:41]}  Be5 {[%clk 0:00:37]} 32. Rc8+ {[%clk 0:00:38]}  Kg7 {[%clk 0:00:35]} 33. Bc5 {[%clk 0:00:36]}  Rd7 {[%clk 0:00:34]} 34. Ne3 {[%clk 0:00:21]}  Nxe3 {[%clk 0:00:31]} 35. Bxe3 {[%clk 0:00:22]}  Rxd5 {[%clk 0:00:31]} 36. Kf1 {[%clk 0:00:17]}  g4 {[%clk 0:00:29]} 37. hxg4 {[%clk 0:00:16]}  hxg4 {[%clk 0:00:29]} 38. Ke2 {[%clk 0:00:17]}  g3 {[%clk 0:00:28]} 39. fxg3 {[%clk 0:00:16]}  Bxg3 {[%clk 0:00:27]} 40. Kf3 {[%clk 0:00:17]}  Be5 {[%clk 0:00:27]} 41. Ra8 {[%clk 0:00:16]}  Rd7 {[%clk 0:00:26]} 42. Ra7 {[%clk 0:00:15]}  Rxa7 {[%clk 0:00:25]} 43. Bxa7 {[%clk 0:00:16]}  Kg6 {[%clk 0:00:24]} 44. Ke4 {[%clk 0:00:17]}  Kg5 {[%clk 0:00:24]} 45. Bb6 {[%clk 0:00:17]}  Kg4 {[%clk 0:00:23]} 46. Bd8 {[%clk 0:00:17]}  Kg3 {[%clk 0:00:22]} 47. Kf5 {[%clk 0:00:16]}  Kxg2 {[%clk 0:00:22]} 48. Bxf6 {[%clk 0:00:17]} 1/2-1/2


[Site "https://www.chess.com"]

[Event "Titled Tuesday Blitz May 24 Early 2022"]
[White "Petrova, Irina"]
[Black "Perez Leiva, Jerzy Jesus"]
[WhiteFideId "14124122"]
[BlackFideId "3524337"]
[WhiteElo "1993"]
[BlackElo "2287"]
[Result "0-1"]
[Round "02"]
[TimeControl "180+1"]
[Date "2022.05.25"]
[WhiteClock "0:00:08"]
[BlackClock "0:00:18"]

1. e4 {[%clk 0:02:58]}  e5 {[%clk 0:02:59]} 2. Nf3 {[%clk 0:02:58]}  Nc6 {[%clk 0:02:59]} 3. Bb5 {[%clk 0:02:58]}  a6 {[%clk 0:03:00]} 4. Ba4 {[%clk 0:02:58]}  Nf6 {[%clk 0:03:00]} 5. d3 {[%clk 0:02:58]}  d6 {[%clk 0:02:58]} 6. Nc3 {[%clk 0:02:56]}  g6 {[%clk 0:02:57]} 7. Nd5 {[%clk 0:02:53]}  Bg7 {[%clk 0:02:53]} 8. Bg5 {[%clk 0:02:53]}  h6 {[%clk 0:02:51]} 9. Nxf6+ {[%clk 0:02:49]}  Bxf6 {[%clk 0:02:52]} 10. Bxf6 {[%clk 0:02:49]}  Qxf6 {[%clk 0:02:53]} 11. h3 {[%clk 0:02:49]}  Bd7 {[%clk 0:02:50]} 12. Qd2 {[%clk 0:02:47]}  O-O-O {[%clk 0:02:40]} 13. Bxc6 {[%clk 0:02:41]}  Bxc6 {[%clk 0:02:40]} 14. c4 {[%clk 0:02:41]}  Qe7 {[%clk 0:02:29]} 15. b4 {[%clk 0:02:40]}  f5 {[%clk 0:02:19]} 16. b5 {[%clk 0:02:28]}  axb5 {[%clk 0:02:18]} 17. cxb5 {[%clk 0:02:28]}  Bxb5 {[%clk 0:02:18]} 18. Rc1 {[%clk 0:02:07]}  fxe4 {[%clk 0:02:06]} 19. dxe4 {[%clk 0:02:03]}  Rhf8 {[%clk 0:01:58]} 20. Qa5 {[%clk 0:01:57]}  Ba6 {[%clk 0:01:58]} 21. Qc3 {[%clk 0:01:24]}  Qf7 {[%clk 0:01:16]} 22. Rc2 {[%clk 0:00:52]}  Rd7 {[%clk 0:01:10]} 23. Qe3 {[%clk 0:00:48]}  Qf4 {[%clk 0:00:47]} 24. Qa7 {[%clk 0:00:45]}  Kd8 {[%clk 0:00:44]} 25. Nd2 {[%clk 0:00:39]}  Ke7 {[%clk 0:00:42]} 26. f3 {[%clk 0:00:22]}  Qg3+ {[%clk 0:00:39]} 27. Qf2 {[%clk 0:00:19]}  Qg5 {[%clk 0:00:35]} 28. Nf1 {[%clk 0:00:15]}  Bd3 {[%clk 0:00:23]} 29. Rd2 {[%clk 0:00:15]}  Bxe4 {[%clk 0:00:23]} 30. Ne3 {[%clk 0:00:14]}  Bc6 {[%clk 0:00:18]} 31. O-O {[%clk 0:00:13]}  Rxf3 {[%clk 0:00:18]} 32. Qe1 {[%clk 0:00:10]}  Qxe3+ {[%clk 0:00:17]} 33. Qxe3 {[%clk 0:00:10]}  Rxe3 {[%clk 0:00:18]} 34. Rdf2 {[%clk 0:00:09]}  Bd5 {[%clk 0:00:18]} 35. Rf8 {[%clk 0:00:08]}  Re2 {[%clk 0:00:18]} 0-1


[Site "https://www.chess.com"]

[Event "Titled Tuesday Blitz May 24 Early 2022"]
[White "Pham, Le Thao Nguyen"]
[Black "Klimkowski, Jan"]
[WhiteFideId "12401226"]
[BlackFideId "21856222"]
[WhiteElo "2271"]
[BlackElo "2197"]
[Result "0-1"]
[Round "02"]
[TimeControl "180+1"]
[Date "2022.05.25"]
[WhiteClock "0:00:02"]
[BlackClock "0:00:05"]

1. d4 {[%clk 0:02:54]}  Nf6 {[%clk 0:02:58]} 2. Nf3 {[%clk 0:02:52]}  g6 {[%clk 0:02:57]} 3. c4 {[%clk 0:02:37]}  Bg7 {[%clk 0:02:57]} 4. Nc3 {[%clk 0:02:38]}  O-O {[%clk 0:02:58]} 5. e4 {[%clk 0:02:37]}  d6 {[%clk 0:02:57]} 6. h3 {[%clk 0:02:14]}  c5 {[%clk 0:02:54]} 7. d5 {[%clk 0:01:54]}  b5 {[%clk 0:02:53]} 8. cxb5 {[%clk 0:01:50]}  a6 {[%clk 0:02:53]} 9. bxa6 {[%clk 0:01:46]}  Nxa6 {[%clk 0:02:52]} 10. Bc4 {[%clk 0:01:43]}  Nb4 {[%clk 0:02:25]} 11. O-O {[%clk 0:01:34]}  Qb6 {[%clk 0:02:24]} 12. Bd2 {[%clk 0:01:06]}  Ba6 {[%clk 0:02:24]} 13. Bxa6 {[%clk 0:00:55]}  Qxa6 {[%clk 0:02:24]} 14. a3 {[%clk 0:00:52]}  Nd3 {[%clk 0:02:23]} 15. Qc2 {[%clk 0:00:52]}  Rfb8 {[%clk 0:02:22]} 16. Rab1 {[%clk 0:00:51]}  Nd7 {[%clk 0:02:10]} 17. Rfd1 {[%clk 0:00:34]}  c4 {[%clk 0:02:08]} 18. Be3 {[%clk 0:00:25]}  Rb3 {[%clk 0:02:03]} 19. Nd4 {[%clk 0:00:22]}  Bxd4 {[%clk 0:01:56]} 20. Bxd4 {[%clk 0:00:21]}  Rab8 {[%clk 0:01:57]} 21. Ne2 {[%clk 0:00:18]}  N7c5 {[%clk 0:01:49]} 22. f3 {[%clk 0:00:18]}  Na4 {[%clk 0:01:49]} 23. Kh2 {[%clk 0:00:13]}  Naxb2 {[%clk 0:01:48]} 24. Rd2 {[%clk 0:00:12]}  Na4 {[%clk 0:01:44]} 25. Rxb3 {[%clk 0:00:12]}  Rxb3 {[%clk 0:01:44]} 26. Nc1 {[%clk 0:00:12]}  Nxc1 {[%clk 0:01:35]} 27. Qxc1 {[%clk 0:00:12]}  c3 {[%clk 0:01:33]} 28. Rd1 {[%clk 0:00:10]}  f6 {[%clk 0:01:29]} 29. Qf4 {[%clk 0:00:08]}  Qe2 {[%clk 0:01:27]} 30. Rg1 {[%clk 0:00:07]}  Qd3 {[%clk 0:01:12]} 31. Be3 {[%clk 0:00:07]}  c2 {[%clk 0:01:11]} 32. Bc1 {[%clk 0:00:07]}  h5 {[%clk 0:01:05]} 33. Qh6 {[%clk 0:00:07]}  g5 {[%clk 0:00:50]} 34. Qg6+ {[%clk 0:00:05]}  Kf8 {[%clk 0:00:50]} 35. h4 {[%clk 0:00:06]}  Qe2 {[%clk 0:00:21]} 36. hxg5 {[%clk 0:00:06]}  Re3 {[%clk 0:00:21]} 37. gxf6 {[%clk 0:00:06]}  exf6 {[%clk 0:00:19]} 38. Qh6+ {[%clk 0:00:07]}  Kf7 {[%clk 0:00:18]} 39. Qxe3 {[%clk 0:00:06]}  Qc4 {[%clk 0:00:19]} 40. Qh6 {[%clk 0:00:06]}  Nc3 {[%clk 0:00:19]} 41. Qxh5+ {[%clk 0:00:06]}  Ke7 {[%clk 0:00:19]} 42. Qh7+ {[%clk 0:00:06]}  Kd8 {[%clk 0:00:19]} 43. Qg7 {[%clk 0:00:05]}  Ne2 {[%clk 0:00:18]} 44. Qxf6+ {[%clk 0:00:06]}  Kc8 {[%clk 0:00:19]} 45. Qb2 {[%clk 0:00:05]}  Qc7 {[%clk 0:00:17]} 46. g4 {[%clk 0:00:05]}  Qc5 {[%clk 0:00:10]} 47. Rg2 {[%clk 0:00:04]}  Nd4 {[%clk 0:00:08]} 48. Be3 {[%clk 0:00:02]}  Kd7 {[%clk 0:00:05]} 0-1


[Site "https://www.chess.com"]

[Event "Titled Tuesday Blitz May 24 Early 2022"]
[White "Politov, Pavel Y."]
[Black "Tymrakiewicz, Rafal"]
[WhiteFideId "24110515"]
[BlackFideId "1108832"]
[WhiteElo "2090"]
[BlackElo "2205"]
[Result "0-1"]
[Round "02"]
[TimeControl "180+1"]
[Date "2022.05.25"]
[WhiteClock "0:00:02"]
[BlackClock "0:00:08"]

1. e4 {[%clk 0:03:00]}  Nf6 {[%clk 0:02:59]} 2. e5 {[%clk 0:03:00]}  Nd5 {[%clk 0:02:58]} 3. d4 {[%clk 0:03:00]}  d6 {[%clk 0:02:58]} 4. c4 {[%clk 0:03:01]}  Nb6 {[%clk 0:02:59]} 5. exd6 {[%clk 0:03:01]}  cxd6 {[%clk 0:02:59]} 6. Nc3 {[%clk 0:02:58]}  g6 {[%clk 0:03:00]} 7. Nf3 {[%clk 0:02:54]}  Bg7 {[%clk 0:03:01]} 8. Be3 {[%clk 0:02:54]}  O-O {[%clk 0:03:01]} 9. Be2 {[%clk 0:02:51]}  Bg4 {[%clk 0:02:59]} 10. O-O {[%clk 0:02:48]}  Nc6 {[%clk 0:02:49]} 11. b3 {[%clk 0:02:47]}  d5 {[%clk 0:02:46]} 12. c5 {[%clk 0:02:44]}  Nc8 {[%clk 0:02:47]} 13. h3 {[%clk 0:02:43]}  Bxf3 {[%clk 0:02:47]} 14. Bxf3 {[%clk 0:02:42]}  e6 {[%clk 0:02:48]} 15. Rb1 {[%clk 0:02:35]}  N8e7 {[%clk 0:02:48]} 16. b4 {[%clk 0:02:27]}  Nf5 {[%clk 0:02:49]} 17. Ne2 {[%clk 0:02:26]}  Qf6 {[%clk 0:02:18]} 18. b5 {[%clk 0:01:08]}  Ncxd4 {[%clk 0:02:16]} 19. Nxd4 {[%clk 0:01:09]}  Nxd4 {[%clk 0:02:16]} 20. Bxd4 {[%clk 0:01:08]}  Qxd4 {[%clk 0:02:17]} 21. Qxd4 {[%clk 0:01:08]}  Bxd4 {[%clk 0:02:18]} 22. c6 {[%clk 0:01:08]}  bxc6 {[%clk 0:02:16]} 23. bxc6 {[%clk 0:01:09]}  Bb6 {[%clk 0:02:11]} 24. Rfc1 {[%clk 0:01:08]}  Rac8 {[%clk 0:02:09]} 25. a4 {[%clk 0:01:07]}  Rb8 {[%clk 0:01:52]} 26. Be2 {[%clk 0:00:53]}  Rfc8 {[%clk 0:01:30]} 27. Ba6 {[%clk 0:00:49]}  Bxf2+ {[%clk 0:01:27]} 28. Kxf2 {[%clk 0:00:43]}  Rxb1 {[%clk 0:01:26]} 29. Rxb1 {[%clk 0:00:42]}  Rxc6 {[%clk 0:01:26]} 30. Bb7 {[%clk 0:00:21]}  Rb6 {[%clk 0:01:19]} 31. Rb5 {[%clk 0:00:07]}  Kf8 {[%clk 0:01:10]} 32. Ke3 {[%clk 0:00:03]}  Ke7 {[%clk 0:01:10]} 33. Kd4 {[%clk 0:00:02]}  Kd6 {[%clk 0:01:08]} 34. Ba8 {[%clk 0:00:02]}  e5+ {[%clk 0:01:04]} 35. Ke3 {[%clk 0:00:02]}  Rxb5 {[%clk 0:01:00]} 36. axb5 {[%clk 0:00:03]}  Kc5 {[%clk 0:01:01]} 37. Bc6 {[%clk 0:00:03]}  f5 {[%clk 0:00:48]} 38. Be8 {[%clk 0:00:03]}  d4+ {[%clk 0:00:41]} 39. Kd2 {[%clk 0:00:03]}  e4 {[%clk 0:00:40]} 40. Bf7 {[%clk 0:00:03]}  g5 {[%clk 0:00:37]} 41. Bg8 {[%clk 0:00:04]}  h6 {[%clk 0:00:18]} 42. Bh7 {[%clk 0:00:04]}  Kc4 {[%clk 0:00:08]} 43. Bxf5 {[%clk 0:00:03]}  e3+ {[%clk 0:00:08]} 44. Ke2 {[%clk 0:00:03]}  Kxb5 {[%clk 0:00:09]} 45. Kd3 {[%clk 0:00:03]}  Kc5 {[%clk 0:00:09]} 46. Bd7 {[%clk 0:00:02]}  Kd6 {[%clk 0:00:08]} 47. Ba4 {[%clk 0:00:02]}  Ke5 {[%clk 0:00:08]} 0-1


[Site "https://www.chess.com"]

[Event "Titled Tuesday Blitz May 24 Early 2022"]
[White "Polster, Christian"]
[Black "Pesotskiy, Mikhail"]
[WhiteFideId "12965081"]
[BlackFideId "34164453"]
[WhiteElo "2300"]
[BlackElo "2010"]
[Result "0-1"]
[Round "02"]
[TimeControl "180+1"]
[Date "2022.05.25"]
[WhiteClock "0:00:04"]
[BlackClock "0:00:41"]

1. e4 {[%clk 0:03:00]}  e6 {[%clk 0:03:00]} 2. d4 {[%clk 0:02:59]}  d5 {[%clk 0:03:01]} 3. Nc3 {[%clk 0:02:56]}  Bb4 {[%clk 0:03:01]} 4. e5 {[%clk 0:02:51]}  c5 {[%clk 0:03:01]} 5. a3 {[%clk 0:02:49]}  Bxc3+ {[%clk 0:03:02]} 6. bxc3 {[%clk 0:02:50]}  Qa5 {[%clk 0:03:02]} 7. Bd2 {[%clk 0:02:44]}  Qa4 {[%clk 0:03:02]} 8. Qb1 {[%clk 0:02:41]}  c4 {[%clk 0:03:01]} 9. f4 {[%clk 0:02:30]}  Ne7 {[%clk 0:02:55]} 10. Nf3 {[%clk 0:02:29]}  Nbc6 {[%clk 0:02:55]} 11. g3 {[%clk 0:02:08]}  Bd7 {[%clk 0:02:56]} 12. Bg2 {[%clk 0:02:05]}  O-O-O {[%clk 0:02:55]} 13. g4 {[%clk 0:01:56]}  f6 {[%clk 0:02:55]} 14. Ke2 {[%clk 0:01:49]}  Rdf8 {[%clk 0:02:54]} 15. h4 {[%clk 0:01:29]}  fxe5 {[%clk 0:02:53]} 16. fxe5 {[%clk 0:01:23]}  Ng6 {[%clk 0:02:53]} 17. Qc1 {[%clk 0:01:16]}  h5 {[%clk 0:02:40]} 18. Bh3 {[%clk 0:01:03]}  Nge7 {[%clk 0:01:44]} 19. Bg5 {[%clk 0:00:46]}  hxg4 {[%clk 0:01:42]} 20. Bxg4 {[%clk 0:00:46]}  Nf5 {[%clk 0:01:43]} 21. Rg1 {[%clk 0:00:43]}  Be8 {[%clk 0:01:39]} 22. Qd2 {[%clk 0:00:37]}  Bh5 {[%clk 0:01:34]} 23. Raf1 {[%clk 0:00:30]}  Bxg4 {[%clk 0:01:26]} 24. Rxg4 {[%clk 0:00:31]}  Qxa3 {[%clk 0:01:26]} 25. Rh1 {[%clk 0:00:26]}  Qa4 {[%clk 0:01:04]} 26. h5 {[%clk 0:00:23]}  Nd8 {[%clk 0:01:04]} 27. h6 {[%clk 0:00:20]}  gxh6 {[%clk 0:01:00]} 28. Bxh6 {[%clk 0:00:21]}  Qe8 {[%clk 0:00:56]} 29. Bxf8 {[%clk 0:00:18]}  Rxh1 {[%clk 0:00:57]} 30. Bc5 {[%clk 0:00:15]}  Qh5 {[%clk 0:00:56]} 31. Qg5 {[%clk 0:00:14]}  Qxg5 {[%clk 0:00:42]} 32. Rxg5 {[%clk 0:00:15]}  b6 {[%clk 0:00:43]} 33. Ba3 {[%clk 0:00:13]}  Rh8 {[%clk 0:00:41]} 34. Rg6 {[%clk 0:00:12]}  Kd7 {[%clk 0:00:42]} 35. Ng5 {[%clk 0:00:10]}  Rh2+ {[%clk 0:00:41]} 36. Kf3 {[%clk 0:00:07]}  Rxc2 {[%clk 0:00:42]} 37. Bb4 {[%clk 0:00:04]}  a5 {[%clk 0:00:41]} 0-1


[Site "https://www.chess.com"]

[Event "Titled Tuesday Blitz May 24 Early 2022"]
[White "Pourkashiyan, Atousa"]
[Black "Proudian, Armen"]
[WhiteFideId "12502014"]
[BlackFideId "2130734"]
[WhiteElo "2247"]
[BlackElo "2380"]
[Result "1-0"]
[Round "02"]
[TimeControl "180+1"]
[Date "2022.05.25"]
[WhiteClock "0:00:21"]
[BlackClock "0:01:41"]

1. e4 {[%clk 0:01:50]}  e5 {[%clk 0:02:58]} 2. Nf3 {[%clk 0:01:51]}  Nc6 {[%clk 0:02:58]} 3. Bb5 {[%clk 0:01:51]}  a6 {[%clk 0:02:58]} 4. Ba4 {[%clk 0:01:52]}  Nf6 {[%clk 0:02:59]} 5. O-O {[%clk 0:01:52]}  Be7 {[%clk 0:03:00]} 6. Re1 {[%clk 0:01:52]}  b5 {[%clk 0:03:00]} 7. Bb3 {[%clk 0:01:52]}  O-O {[%clk 0:03:01]} 8. d3 {[%clk 0:01:52]}  d6 {[%clk 0:03:00]} 9. a4 {[%clk 0:01:52]}  b4 {[%clk 0:03:00]} 10. Nbd2 {[%clk 0:01:52]}  Be6 {[%clk 0:03:00]} 11. Nc4 {[%clk 0:01:50]}  Qc8 {[%clk 0:02:59]} 12. Be3 {[%clk 0:01:49]}  Nd7 {[%clk 0:02:49]} 13. a5 {[%clk 0:01:49]}  Rb8 {[%clk 0:02:43]} 14. c3 {[%clk 0:01:48]}  Qb7 {[%clk 0:02:36]} 15. Ba4 {[%clk 0:01:45]}  Rfd8 {[%clk 0:02:29]} 16. cxb4 {[%clk 0:01:35]}  Nxb4 {[%clk 0:02:27]} 17. Rc1 {[%clk 0:01:26]}  Nf8 {[%clk 0:02:22]} 18. d4 {[%clk 0:01:21]}  Bg4 {[%clk 0:02:15]} 19. d5 {[%clk 0:01:16]}  Ng6 {[%clk 0:02:12]} 20. Rc3 {[%clk 0:01:11]}  Nh4 {[%clk 0:02:11]} 21. Rb3 {[%clk 0:01:09]}  Bxf3 {[%clk 0:02:07]} 22. gxf3 {[%clk 0:01:10]}  Qc8 {[%clk 0:02:08]} 23. Kh1 {[%clk 0:00:56]}  Qh3 {[%clk 0:02:08]} 24. Rg1 {[%clk 0:00:56]}  Qxf3+ {[%clk 0:01:59]} 25. Qxf3 {[%clk 0:00:55]}  Nxf3 {[%clk 0:02:00]} 26. Rc1 {[%clk 0:00:44]}  Bg5 {[%clk 0:01:52]} 27. Bxg5 {[%clk 0:00:30]}  Nxg5 {[%clk 0:01:53]} 28. f3 {[%clk 0:00:31]}  Na2 {[%clk 0:01:50]} 29. Rg1 {[%clk 0:00:19]}  Nh3 {[%clk 0:01:49]} 30. Rg3 {[%clk 0:00:18]}  Nf4 {[%clk 0:01:49]} 31. Rxb8 {[%clk 0:00:16]}  Rxb8 {[%clk 0:01:49]} 32. b3 {[%clk 0:00:16]}  Nc1 {[%clk 0:01:50]} 33. Ne3 {[%clk 0:00:13]}  g6 {[%clk 0:01:48]} 34. Ng2 {[%clk 0:00:12]}  Nxg2 {[%clk 0:01:48]} 35. Rxg2 {[%clk 0:00:12]}  Rb4 {[%clk 0:01:44]} 36. Rc2 {[%clk 0:00:12]}  Nxb3 {[%clk 0:01:44]} 37. Bxb3 {[%clk 0:00:11]}  Rxb3 {[%clk 0:01:45]} 38. Rxc7 {[%clk 0:00:12]}  Rxf3 {[%clk 0:01:45]} 39. Rc6 {[%clk 0:00:12]}  Re3 {[%clk 0:01:44]} 40. Rxd6 {[%clk 0:00:12]}  Rxe4 {[%clk 0:01:45]} 41. Rxa6 {[%clk 0:00:12]}  Rd4 {[%clk 0:01:46]} 42. d6 {[%clk 0:00:12]}  Rd3 {[%clk 0:01:46]} 43. Rc6 {[%clk 0:00:12]}  e4 {[%clk 0:01:37]} 44. a6 {[%clk 0:00:12]}  e3 {[%clk 0:01:37]} 45. Kg2 {[%clk 0:00:12]}  Ra3 {[%clk 0:01:36]} 46. d7 {[%clk 0:00:12]}  Rd3 {[%clk 0:01:36]} 47. Rc8+ {[%clk 0:00:12]}  Kg7 {[%clk 0:01:36]} 48. d8=Q {[%clk 0:00:13]}  Rxd8 {[%clk 0:01:34]} 49. Rxd8 {[%clk 0:00:14]}  f5 {[%clk 0:01:35]} 50. Kf3 {[%clk 0:00:14]}  f4 {[%clk 0:01:36]} 51. Kxf4 {[%clk 0:00:14]}  e2 {[%clk 0:01:37]} 52. Re8 {[%clk 0:00:14]}  e1=Q {[%clk 0:01:38]} 53. Rxe1 {[%clk 0:00:15]}  Kh6 {[%clk 0:01:38]} 54. a7 {[%clk 0:00:15]}  g5+ {[%clk 0:01:38]} 55. Kf3 {[%clk 0:00:16]}  Kh5 {[%clk 0:01:38]} 56. a8=Q {[%clk 0:00:17]}  g4+ {[%clk 0:01:39]} 57. Kg2 {[%clk 0:00:18]}  h6 {[%clk 0:01:39]} 58. Qd5+ {[%clk 0:00:18]}  Kh4 {[%clk 0:01:39]} 59. Qd8+ {[%clk 0:00:18]}  Kh5 {[%clk 0:01:39]} 60. Re5+ {[%clk 0:00:19]}  Kg6 {[%clk 0:01:40]} 61. Qd6+ {[%clk 0:00:19]}  Kh7 {[%clk 0:01:40]} 62. Re7+ {[%clk 0:00:20]}  Kh8 {[%clk 0:01:41]} 63. Qd8# {[%clk 0:00:21]} 1-0


[Site "https://www.chess.com"]